fUST/lending_fUST_20260205
["ID","MTS","AMOUNT","RATE_DAILY","PERIOD"]
[404547842,1770278156971,-185.95017996,0.000409,120]
[404547843,1770278157023,-205.03430025,0.000409,120]
[404547844,1770278157079,-151.98,0.00040961,120]
[404547845,1770278157132,-527.45,0.00040993,120]
[404547846,1770278157185,-567.03,0.00040993,120]
[404547847,1770278157241,-151.98,0.00041061,120]
[404547848,1770278157294,-800.0,0.00041096,120]
[404547849,1770278157345,-194.95,0.00041096,120]
[404547850,1770278157396,-500.0,0.00041096,31]
[404547851,1770278157448,-650.80228651,0.00041096,31]
[404547852,1770278157502,-420.0,0.00041161,120]
[404547853,1770278157560,-151.98,0.00041161,120]
[404547854,1770278157616,-1078.13,0.000412,14]
[404547855,1770278157675,-151.98,0.00041261,120]
[404547856,1770278157736,-151.98,0.00041361,120]
[404547857,1770278157796,-151.98,0.00041461,120]
[404547858,1770278157854,-151.98,0.00041561,120]
[404547859,1770278157910,-800.0,0.00041644,120]
[404547860,1770278157964,-151.98,0.00041661,120]
[404547861,1770278158017,-151.98,0.00041761,120]
[404547862,1770278158073,-151.98,0.00041861,120]
[404547863,1770278158128,-151.98,0.00041961,120]
[404547864,1770278158183,-151.98,0.00042061,120]
[404547865,1770278158234,-227.30747504,0.000421,120]
[404547866,1770278158286,-224.81849868,0.000421,120]
[404547867,1770278158335,-177.1572278,0.000421,120]
[404547868,1770278158382,-185.95017996,0.000421,120]
[404547869,1770278158435,-151.98,0.00042161,120]
[404547870,1770278158487,-800.0,0.00042192,120]
[404547871,1770278158542,-152.26,0.00042261,120]
[404547872,1770278158594,-166.0,0.00042288,90]
[404547873,1770278158645,-5000.0,0.000425,100]
[404547874,1770278158698,-800.0,0.0004274,120]
[404547875,1770278158748,-163.59,0.000428,14]
[404547876,1770278158801,-527.45,0.00042987,120]
[404547877,1770278158852,-160.02,0.00043,14]
[404547878,1770278158903,-1078.13,0.00043,14]
[404547879,1770278158953,-447.0,0.00043161,120]
[404547880,1770278159006,-800.0,0.00043288,120]
[404547881,1770278159060,-227.30747504,0.000434,120]
[404547882,1770278159115,-224.81849868,0.000434,120]
[404547883,1770278159168,-177.1572278,0.000434,120]
[404547884,1770278159220,-185.95017996,0.000434,120]
[404547885,1770278159275,-800.0,0.00043836,120]
[404547886,1770278159331,-800.0,0.00044384,120]
[404547887,1770278159384,-227.30747504,0.000447,120]
[404547888,1770278159437,-224.81849868,0.000447,120]
[404547889,1770278159490,-177.1572278,0.000447,120]
[404547890,1770278159623,-185.95017996,0.000447,120]
[404547891,1770278159681,-232.93,0.000447,120]
[404547892,1770278159742,-800.0,0.00044932,120]
[404547893,1770278159800,-527.45,0.00044981,120]
[404547894,1770278159855,-297.0,0.00045,120]
[404547895,1770278159911,-468.02332549,0.00045,30]
[404547896,1770278159968,-775.0,0.00045,120]
[404547897,1770278160025,-166.0,0.00045107,90]
[404547898,1770278160084,-474.0,0.00045161,120]
[404547899,1770278160140,-244.56815391,0.000454,120]
[404547900,1770278160200,-800.0,0.00045479,120]
[404547901,1770278160258,-300.1135269,0.00046,30]
[404547902,1770278160321,-500.16,0.00046027,120]
[404547903,1770278160380,-380.03337,0.00046163,60]
[404547904,1770278160437,-456.711161,0.00046163,60]
[404547905,1770278160494,-533.388951,0.00046163,60]
[404547906,1770278160551,-610.066741,0.00046163,60]
[404547907,1770278160606,-686.744532,0.00046163,60]
[404547908,1770278160661,-763.422322,0.00046163,60]
[404547909,1770278160716,-840.100112,0.00046163,60]
[404547910,1770278160778,-527.45,0.00046976,120]
[404547911,1770278160831,-167.81,0.00047,90]
[404547912,1770278160888,-164.47,0.00047,90]
[404547913,1770278160945,-482.87791118,0.00047161,120]
[404547914,1770278161000,-292.82813359,0.00047796,60]
[404547915,1770278161055,-166.0,0.00047926,90]
[404547916,1770278161110,-150.34,0.00048,120]
[404547917,1770278161165,-285.65626719,0.00048015,60]
[404547918,1770278161217,-285.65626719,0.00048289,60]
[404547919,1770278161270,-166.0,0.00048329,90]
[404547920,1770278161323,-3000.0,0.000485,120]
[404547921,1770278161378,-163.59,0.000485,14]
[404547922,1770278161432,-238.04688932,0.00048617,60]
[404547923,1770278161486,-166.46569153,0.000488,120]
[404547924,1770278161541,-6970.26332944,0.000489,120]
[404547925,1770278161598,-527.45,0.0004897,120]
[404547926,1770278161651,-150.0,0.00049,120]
[404547927,1770278161705,-150.0,0.00049214,60]
[404547928,1770278161763,-155.131789,0.00049214,60]
[404547929,1770278161820,-160.263578,0.00049214,60]
[404547930,1770278161876,-165.395368,0.00049214,60]
[404547931,1770278161933,-170.527157,0.00049214,60]
[404547932,1770278161992,-175.658946,0.00049214,60]
[404547933,1770278162048,-180.790736,0.00049214,60]
[404547934,1770278162105,-185.922525,0.00049214,60]
[404547935,1770278162162,-191.054314,0.00049214,60]
[404547936,1770278162216,-196.186104,0.00049214,60]
[404547937,1770278162270,-1418.0,0.000493,13]
[404547938,1770278162323,-257.87037072,0.00049315,10]
[404547939,1770278162379,-778.41007145,0.000496,120]
[404547940,1770278162435,-1679.05,0.0004988,120]
[404547941,1770278162494,-208.508348,0.000499,120]
[404547942,1770278162552,-213.25953077,0.0005,120]
[404547943,1770278162681,-155.0,0.0005,120]
[404547944,1770278162736,-185.36851,0.0005,120]
[404547945,1770278162790,-161.82,0.00050136,30]
[404547946,1770278162842,-3104.83,0.00050445,13]
[404547947,1770278162890,-166.0,0.00050745,120]
[404547948,1770278162938,-161.82,0.00050821,32]
[404547949,1770278162990,-527.45,0.00050965,120]
[404547950,1770278163044,-465.36331655,0.00051,120]
[404547951,1770278163100,-3000.0,0.00051,85]
[404547952,1770278163156,-3000.0,0.0005101,85]
[404547953,1770278163211,-3000.0,0.0005102,85]
[404547954,1770278163269,-3000.0,0.0005103,85]
[404547955,1770278163327,-3000.0,0.0005104,85]
[404547956,1770278163382,-3000.0,0.0005105,85]
[404547957,1770278163436,-3000.0,0.0005106,85]
[404547958,1770278163495,-5129.404018,0.0005107,85]
[404547959,1770278163550,-161.82,0.00051506,34]
[404547960,1770278163607,-155.0,0.000517,120]
[404547961,1770278163661,-185.132,0.00051739,94]
[404547962,1770278163718,-1096.25,0.000518,14]
[404547963,1770278163776,-161.82,0.00052191,36]
[404547964,1770278163828,-163.59,0.000522,14]
[404547965,1770278163878,-331.03417276,0.00052619,120]
[404547966,1770278163929,-161.82,0.00052876,38]
[404547967,1770278163981,-527.45,0.00052959,120]
[404547968,1770278164035,-567.03,0.00052959,120]
[404547969,1770278164089,-1078.13,0.00053,14]
[404547970,1770278164141,-155.0,0.000534,120]
[404547971,1770278164190,-500.0,0.00053408,120]
[404547972,1770278164240,-600.0,0.00053408,120]
[404547973,1770278164291,-150.0,0.00053425,120]
[404547974,1770278164343,-500.0,0.00053425,120]
[404547975,1770278164396,-150.0,0.00053425,120]
[404547976,1770278164449,-256.22047236,0.00053425,120]
[404547977,1770278164503,-500.0,0.00053425,120]
[404547978,1770278164559,-153.1192258,0.00053425,120]
[404547979,1770278164616,-500.0,0.00053425,120]
[404547980,1770278164671,-500.0,0.00053425,120]
[404547981,1770278164726,-500.0,0.00053425,120]
[404547982,1770278164781,-150.0,0.00053425,120]
[404547983,1770278164839,-214.05378658,0.00053425,120]
[404547984,1770278164895,-150.0,0.00053425,120]
[404547985,1770278164951,-500.0,0.00053425,120]
[404547986,1770278165008,-150.0,0.00053425,120]
[404547987,1770278165062,-252.19588937,0.00053425,120]
[404547988,1770278165115,-150.0,0.00053425,120]
[404547989,1770278165168,-150.0,0.00053425,120]
[404547990,1770278165219,-500.0,0.00053425,120]
[404547991,1770278165269,-150.0,0.00053425,120]
[404547992,1770278165321,-150.0,0.00053425,120]
[404547993,1770278165374,-150.0,0.00053425,120]
[404547994,1770278165502,-201.35982162,0.00053425,120]
[404547995,1770278165558,-176.30353914,0.00053425,120]
[404547996,1770278165611,-227.52323605,0.00053425,120]
[404547997,1770278165663,-500.0,0.00053425,120]
[404547998,1770278165716,-150.0,0.00053425,120]
[404547999,1770278165771,-150.0,0.00053425,120]
[404548000,1770278165821,-177.85417666,0.00053425,120]
[404548001,1770278165872,-150.0,0.00053425,120]
[404548002,1770278165922,-202.03914632,0.00053425,120]
[404548003,1770278165970,-500.0,0.00053425,120]
[404548004,1770278166019,-500.0,0.00053425,120]
[404548005,1770278166070,-500.0,0.00053425,120]
[404548006,1770278166121,-500.0,0.00053425,120]
[404548007,1770278166170,-500.0,0.00053425,120]
[404548008,1770278166221,-602.17985327,0.00053425,120]
[404548009,1770278166275,-500.0,0.00053425,120]
[404548010,1770278166328,-150.0,0.00053425,120]
[404548011,1770278166383,-500.0,0.00053425,120]
[404548012,1770278166441,-201.97109269,0.00053425,120]
[404548013,1770278166496,-500.0,0.00053425,120]
[404548014,1770278166548,-152.87470392,0.00053425,120]
[404548015,1770278166599,-500.0,0.00053425,120]
[404548016,1770278166648,-520.55648968,0.00053425,120]
[404548017,1770278166701,-500.0,0.00053425,120]
[404548018,1770278166755,-203.20296135,0.00053425,84]
[404548019,1770278166809,-500.0,0.00053425,120]
[404548020,1770278166862,-511.31310307,0.00053425,120]
[404548021,1770278166911,-201.96503323,0.00053425,120]
[404548022,1770278166963,-500.0,0.00053425,120]
[404548023,1770278167013,-500.0,0.00053425,120]
[404548024,1770278167067,-500.0,0.00053425,120]
[404548025,1770278167120,-500.0,0.00053425,120]
[404548026,1770278167174,-500.0,0.00053425,120]
[404548027,1770278167227,-500.0,0.00053425,120]
[404548028,1770278167280,-500.0,0.00053425,120]
[404548029,1770278167334,-500.0,0.00053425,120]
[404548030,1770278167386,-500.0,0.00053425,120]
[404548031,1770278167441,-500.0,0.00053425,120]
[404548032,1770278167495,-500.0,0.00053425,120]
[404548033,1770278167547,-500.0,0.00053425,120]
[404548034,1770278167601,-500.0,0.00053425,120]
[404548035,1770278167655,-500.0,0.00053425,120]
[404548036,1770278167710,-500.0,0.00053425,120]
[404548037,1770278167768,-500.0,0.00053425,120]
[404548038,1770278167825,-500.0,0.00053425,120]
[404548039,1770278167881,-500.0,0.00053425,120]
[404548040,1770278167937,-500.0,0.00053425,120]
[404548041,1770278167992,-297.56199868,0.00053425,120]
[404548042,1770278168050,-500.0,0.00053425,120]
[404548043,1770278168107,-500.0,0.00053425,120]
[404548044,1770278168234,-500.0,0.00053425,120]
[404548045,1770278168291,-500.0,0.00053425,120]
[404548046,1770278168347,-500.0,0.00053425,120]
[404548047,1770278168402,-500.0,0.00053425,120]
[404548048,1770278168458,-500.0,0.00053425,120]
[404548049,1770278168514,-500.0,0.00053425,120]
[404548050,1770278168569,-500.0,0.00053425,120]
[404548051,1770278168625,-500.0,0.00053425,120]
[404548052,1770278168682,-500.0,0.00053425,120]
[404548053,1770278168734,-500.0,0.00053425,120]
[404548054,1770278168789,-562.17527266,0.00053425,120]
[404548055,1770278168843,-500.0,0.00053425,120]
[404548056,1770278168895,-500.0,0.00053425,120]
[404548057,1770278168948,-484.8114719,0.00053425,120]
[404548058,1770278169005,-31900.03516287,0.00053495,120]
[404548059,1770278169065,-161.82,0.00053561,40]
[404548060,1770278169122,-161.82,0.00054246,42]
[404548061,1770278169179,-151.0,0.00054525,120]
[404548062,1770278169236,-151.0,0.00054525,120]
[404548063,1770278169291,-27918.95952885,0.00054525,30]
[404548064,1770278169345,-500.0,0.00054794,120]
[404548065,1770278169401,-514.96959207,0.00054794,120]
[404548066,1770278169459,-541.80764007,0.00054794,120]
[404548067,1770278169515,-500.0,0.00054794,120]
[404548068,1770278169570,-572.21318559,0.00054794,120]
[404548069,1770278169627,-565.33611118,0.00054794,120]
[404548070,1770278169684,-500.0,0.00054794,120]
[404548071,1770278169740,-500.0,0.00054794,120]
[404548072,1770278169798,-500.0,0.00054794,120]
[404548073,1770278169855,-500.0,0.00054794,30]
[404548074,1770278169913,-500.0,0.00054794,120]
[404548075,1770278169969,-818.26,0.00054794,120]
[404548076,1770278170025,-584.19,0.00054794,120]
[404548077,1770278170082,-523.90822892,0.00054794,120]
[404548078,1770278170139,-522.46351452,0.00054794,120]
[404548079,1770278170197,-522.09156037,0.00054794,120]
[404548080,1770278170253,-884.33,0.00054794,120]
[404548081,1770278170308,-2441.21,0.00054794,120]
[404548082,1770278170364,-525.78306903,0.00054794,120]
[404548083,1770278170419,-500.0,0.00054794,120]
[404548084,1770278170472,-500.0,0.00054794,120]
[404548085,1770278170527,-500.0,0.00054794,120]
[404548086,1770278170583,-500.0,0.00054794,120]
[404548087,1770278170636,-556.20717065,0.00054794,120]
[404548088,1770278170689,-519.68226696,0.00054794,120]
[404548089,1770278170743,-500.0,0.00054794,120]
[404548090,1770278170801,-416.50625702,0.00054794,120]
[404548091,1770278170858,-587.55268523,0.00054794,120]
[404548092,1770278170990,-534.74256955,0.00054794,120]
[404548093,1770278171046,-500.0,0.00054794,120]
[404548094,1770278171103,-500.0,0.00054794,120]
[404548095,1770278171160,-500.0,0.00054794,120]
[404548096,1770278171216,-500.0,0.00054794,120]
[404548097,1770278171271,-500.0,0.00054794,120]
[404548098,1770278171326,-605.7093469,0.00054794,120]
[404548099,1770278171380,-500.0,0.00054794,120]
[404548100,1770278171438,-500.0,0.00054794,120]
[404548101,1770278171495,-500.0,0.00054794,120]
[404548102,1770278171551,-519.30880371,0.00054794,120]
[404548103,1770278171606,-6150.11,0.00054794,14]
[404548104,1770278171660,-332.0669911,0.00054794,14]
[404548105,1770278171716,-500.0,0.00054794,120]
[404548106,1770278171778,-500.0,0.00054794,120]
[404548107,1770278171834,-500.0,0.00054794,120]
[404548108,1770278171889,-500.0,0.00054794,120]
[404548109,1770278171944,-500.0,0.00054794,120]
[404548110,1770278172000,-288.92081167,0.00054794,120]
[404548111,1770278172056,-277.17713735,0.00054794,120]
[404548112,1770278172111,-500.0,0.00054794,120]
[404548113,1770278172168,-500.0,0.00054794,120]
[404548114,1770278172225,-500.0,0.00054794,120]
[404548115,1770278172284,-508.40637334,0.00054794,120]
[404548116,1770278172339,-515.79510625,0.00054794,120]
[404548117,1770278172397,-500.0,0.00054794,120]
[404548118,1770278172453,-500.0,0.00054794,120]
[404548119,1770278172508,-185.8661489,0.00054794,120]
[404548120,1770278172564,-502.24473179,0.00054794,120]
[404548121,1770278172620,-519.00782173,0.00054794,120]
[404548122,1770278172674,-527.21106277,0.00054794,120]
[404548123,1770278172728,-506.77582712,0.00054794,120]
[404548124,1770278172782,-445.23642891,0.00054794,120]
[404548125,1770278172835,-410.91714166,0.00054794,120]
[404548126,1770278172890,-500.0,0.00054794,120]
[404548127,1770278172943,-150.65359743,0.00054794,120]
[404548128,1770278172998,-500.0,0.00054794,120]
[404548129,1770278173055,-536.86505912,0.00054794,120]
[404548130,1770278173112,-500.0,0.00054794,120]
[404548131,1770278173169,-812.05,0.00054794,120]
[404548132,1770278173224,-500.0,0.00054794,120]
[404548133,1770278173279,-500.0,0.00054794,120]
[404548134,1770278173333,-2641.29,0.00054794,120]
[404548135,1770278173387,-759.38,0.00054794,120]
[404548136,1770278173441,-500.0,0.00054794,120]
[404548137,1770278173494,-500.0,0.00054794,120]
[404548138,1770278173550,-500.0,0.00054794,120]
[404548139,1770278173684,-218.01649178,0.00054794,120]
[404548140,1770278173738,-621.76709553,0.00054794,120]
[404548141,1770278173794,-500.0,0.00054794,120]
[404548142,1770278173848,-541.30524817,0.00054794,120]
[404548143,1770278173903,-538.73,0.00054794,120]
[404548144,1770278173956,-171.77960274,0.00054794,120]
[404548145,1770278174014,-500.0,0.00054794,120]
[404548146,1770278174070,-500.0,0.00054794,120]
[404548147,1770278174125,-500.0,0.00054794,120]
[404548148,1770278174180,-500.0,0.00054794,120]
[404548149,1770278174234,-500.0,0.00054794,120]
[404548150,1770278174293,-500.0,0.00054794,120]
[404548151,1770278174347,-500.0,0.00054794,120]
[404548152,1770278174406,-500.0,0.00054794,120]
[404548153,1770278174463,-538.38,0.00054794,120]
[404548154,1770278174519,-319.95606587,0.00054794,120]
[404548155,1770278174576,-237.57780682,0.00054794,120]
[404548156,1770278174634,-500.0,0.00054794,120]
[404548157,1770278174691,-216.7885153,0.00054794,120]
[404548158,1770278174755,-500.0,0.00054794,120]
[404548159,1770278174811,-500.0,0.00054794,120]
[404548160,1770278174870,-500.0,0.00054794,120]
[404548161,1770278174926,-500.0,0.00054794,120]
[404548162,1770278174983,-518.59294652,0.00054794,120]
[404548163,1770278175041,-609.04038245,0.00054794,120]
[404548164,1770278175095,-500.0,0.00054794,120]
[404548165,1770278175150,-535.13682178,0.00054794,120]
[404548166,1770278175203,-558.74378315,0.00054794,120]
[404548167,1770278175257,-500.0,0.00054794,120]
[404548168,1770278175309,-515.16315374,0.00054794,120]
[404548169,1770278175361,-335.92195395,0.00054794,120]
[404548170,1770278175417,-500.0,0.00054794,120]
[404548171,1770278175472,-309.05023955,0.00054794,120]
[404548172,1770278175527,-194.27140929,0.00054794,120]
[404548173,1770278175584,-500.0,0.00054794,120]
[404548174,1770278175639,-500.0,0.00054794,120]
[404548175,1770278175694,-515.36802531,0.00054794,120]
[404548176,1770278175753,-500.0,0.00054794,120]
[404548177,1770278175812,-500.0,0.00054794,120]
[404548178,1770278175871,-500.0,0.00054794,120]
[404548179,1770278175928,-194.32379185,0.00054794,120]
[404548180,1770278175985,-500.0,0.00054794,120]
[404548181,1770278176042,-590.22277997,0.00054794,120]
[404548182,1770278176099,-500.0,0.00054794,120]
[404548183,1770278176155,-500.0,0.00054794,120]
[404548184,1770278176278,-500.0,0.00054794,120]
[404548185,1770278176335,-481.02129788,0.00054794,120]
[404548186,1770278176392,-500.0,0.00054794,120]
[404548187,1770278176448,-500.0,0.00054794,120]
[404548188,1770278176508,-500.43120087,0.00054794,120]
[404548189,1770278176565,-500.0,0.00054794,120]
[404548190,1770278176622,-500.0,0.00054794,120]
[404548191,1770278176680,-412.82164942,0.00054794,120]
[404548192,1770278176736,-500.0,0.00054794,120]
[404548193,1770278176793,-500.0,0.00054794,120]
[404548194,1770278176849,-964.38,0.00054794,120]
[404548195,1770278176904,-964.38,0.00054794,120]
[404548196,1770278176959,-964.38,0.00054794,120]
[404548197,1770278177014,-964.38,0.00054794,120]
[404548198,1770278177071,-964.38,0.00054794,120]
[404548199,1770278177131,-964.38,0.00054794,120]
[404548200,1770278177189,-964.38,0.00054794,120]
[404548201,1770278177248,-964.38,0.00054794,120]
[404548202,1770278177307,-964.38,0.00054794,120]
[404548203,1770278177366,-964.38,0.00054794,120]
[404548204,1770278177424,-613.29218657,0.00054794,120]
[404548205,1770278177483,-964.38,0.00054794,120]
[404548206,1770278177540,-964.38,0.00054794,120]
[404548207,1770278177596,-964.38,0.00054794,120]
[404548208,1770278177652,-964.38,0.00054794,120]
[404548209,1770278177707,-964.38,0.00054794,120]
[404548210,1770278177768,-964.38,0.00054794,120]
[404548211,1770278177824,-964.38,0.00054794,120]
[404548212,1770278177881,-964.38,0.00054794,120]
[404548213,1770278177936,-964.38,0.00054794,120]
[404548214,1770278177994,-964.38,0.00054794,120]
[404548215,1770278178055,-964.38,0.00054794,120]
[404548216,1770278178112,-964.38,0.00054794,120]
[404548217,1770278178165,-964.38,0.00054794,120]
[404548218,1770278178218,-964.50352913,0.00054794,120]
[404548219,1770278178271,-369.76427841,0.00054794,120]
[404548220,1770278178322,-500.0,0.00054794,120]
[404548221,1770278178375,-3979.5,0.00054794,120]
[404548222,1770278178429,-1570.65,0.00054794,21]
[404548223,1770278178485,-500.0,0.00054794,120]
[404548224,1770278178541,-500.0,0.00054794,120]
[404548225,1770278178597,-467.65054382,0.00054794,120]
[404548226,1770278178651,-500.0,0.00054794,120]
[404548227,1770278178774,-500.0,0.00054794,120]
[404548228,1770278178831,-500.0,0.00054794,120]
[404548229,1770278178886,-500.0,0.00054794,120]
[404548230,1770278178942,-564.57,0.00054794,120]
[404548231,1770278178996,-478.21549517,0.00054794,120]
[404548232,1770278179052,-500.0,0.00054794,120]
[404548233,1770278179108,-222.56052187,0.00054794,120]
[404548234,1770278179163,-500.0,0.00054794,120]
[404548235,1770278179218,-500.0,0.00054794,120]
[404548236,1770278179271,-500.0,0.00054794,120]
[404548237,1770278179324,-561.44012365,0.00054794,120]
[404548238,1770278179377,-500.0,0.00054794,120]
[404548239,1770278179431,-500.0,0.00054794,120]
[404548240,1770278179486,-487.41388163,0.00054794,120]
[404548241,1770278179541,-500.0,0.00054794,120]
[404548242,1770278179598,-185.76712154,0.00054794,120]
[404548243,1770278179654,-999.0,0.00054794,120]
[404548244,1770278179711,-500.0,0.00054794,120]
[404548245,1770278179774,-500.0,0.00054794,120]
[404548246,1770278179832,-500.0,0.00054794,120]
[404548247,1770278179890,-500.0,0.00054794,120]
[404548248,1770278179947,-734.66,0.00054794,120]
[404548249,1770278180006,-500.0,0.00054794,120]
[404548250,1770278180063,-500.0,0.00054794,120]
[404548251,1770278180123,-2511.96,0.00054794,120]
[404548252,1770278180181,-500.0,0.00054794,120]
[404548253,1770278180237,-500.0,0.00054794,120]
[404548254,1770278180295,-452.56413557,0.00054794,120]
[404548255,1770278180353,-498.93227614,0.00054794,120]
[404548256,1770278180411,-4060.59,0.00054794,90]
[404548257,1770278180468,-181.87150427,0.00054794,120]
[404548258,1770278180526,-505.26252234,0.00054794,120]
[404548259,1770278180585,-200.0,0.00054794,120]
[404548260,1770278180642,-500.0,0.00054794,120]
[404548261,1770278180696,-562.02150673,0.00054794,120]
[404548262,1770278180752,-500.0,0.00054794,120]
[404548263,1770278180807,-525.36619795,0.00054794,120]
[404548264,1770278180861,-500.0,0.00054794,120]
[404548265,1770278180917,-986.51,0.00054794,120]
[404548266,1770278180972,-547.33301491,0.00054794,120]
[404548267,1770278181028,-500.0,0.00054794,120]
[404548268,1770278181085,-500.0,0.00054794,120]
[404548269,1770278181202,-500.0,0.00054794,120]
[404548270,1770278181264,-501.69635149,0.00054794,120]
[404548271,1770278181324,-554.20898101,0.00054794,120]
[404548272,1770278181380,-500.0,0.00054794,120]
[404548273,1770278181441,-500.0,0.00054794,120]
[404548274,1770278181498,-198.41263817,0.00054794,120]
[404548275,1770278181556,-500.0,0.00054794,120]
[404548276,1770278181613,-500.0,0.00054794,120]
[404548277,1770278181671,-157.23355334,0.00054794,120]
[404548278,1770278181742,-203.82976858,0.00054794,120]
[404548279,1770278181812,-500.0,0.00054794,120]
[404548280,1770278181868,-506.99251224,0.00054794,120]
[404548281,1770278181926,-256.84256179,0.00054794,120]
[404548282,1770278181981,-500.0,0.00054794,120]
[404548283,1770278182038,-500.0,0.00054794,120]
[404548284,1770278182094,-500.0,0.00054794,120]
[404548285,1770278182149,-150.24846515,0.00054794,120]
[404548286,1770278182204,-533.70901736,0.00054794,120]
[404548287,1770278182259,-370.15215266,0.00054794,120]
[404548288,1770278182315,-178.35479492,0.00054794,120]
[404548289,1770278182372,-425.70049572,0.00054794,120]
[404548290,1770278182427,-599.56024478,0.00054794,120]
[404548291,1770278182485,-500.0,0.00054794,120]
[404548292,1770278182543,-563.05116406,0.00054794,120]
[404548293,1770278182600,-500.0,0.00054794,120]
[404548294,1770278182652,-277.89545106,0.00054794,120]
[404548295,1770278182705,-780.7,0.00054794,120]
[404548296,1770278182762,-243.41418164,0.00054794,120]
[404548297,1770278182813,-355.03421094,0.00054794,120]
[404548298,1770278182860,-500.0,0.00054794,120]
[404548299,1770278182908,-500.0,0.00054794,120]
[404548300,1770278182958,-500.0,0.00054794,120]
[404548301,1770278183014,-551.24098873,0.00054794,120]
[404548302,1770278183067,-500.0,0.00054794,120]
[404548303,1770278183121,-298.17735853,0.00054794,120]
[404548304,1770278183175,-500.0,0.00054794,120]
[404548305,1770278183229,-504.90017527,0.00054794,120]
[404548306,1770278183283,-500.0,0.00054794,120]
[404548307,1770278183341,-500.0,0.00054794,120]
[404548308,1770278183396,-674.29,0.00054794,120]
[404548309,1770278183451,-599.61946645,0.00054794,120]
[404548310,1770278183576,-505.2153071,0.00054794,120]
[404548311,1770278183632,-500.0,0.00054794,120]
[404548312,1770278183690,-500.0,0.00054794,120]
[404548313,1770278183749,-510.25755733,0.00054794,120]
[404548314,1770278183806,-574.49,0.00054794,120]
[404548315,1770278183864,-500.0,0.00054794,120]
[404548316,1770278183921,-500.0,0.00054794,120]
[404548317,1770278183976,-500.0,0.00054794,120]
[404548318,1770278184033,-536.13802318,0.00054794,120]
[404548319,1770278184092,-500.0,0.00054794,120]
[404548320,1770278184149,-819.11,0.00054794,120]
[404548321,1770278184206,-199.71012156,0.00054794,120]
[404548322,1770278184263,-720.66,0.00054794,120]
[404548323,1770278184319,-500.0,0.00054794,120]
[404548324,1770278184374,-500.0,0.00054794,120]
[404548325,1770278184430,-2190.74,0.00054794,10]
[404548326,1770278184487,-500.0,0.00054794,120]
[404548327,1770278184544,-500.0,0.00054794,120]
[404548328,1770278184601,-500.0,0.00054794,120]
[404548329,1770278184657,-500.0,0.00054794,120]
[404548330,1770278184714,-500.0,0.00054794,120]
[404548331,1770278184778,-500.0,0.00054794,120]
[404548332,1770278184833,-539.20718006,0.00054794,120]
[404548333,1770278184887,-610.44338243,0.00054794,120]
[404548334,1770278184943,-500.0,0.00054794,120]
[404548335,1770278184997,-250.62613886,0.00054794,120]
[404548336,1770278185055,-525.80845527,0.00054794,120]
[404548337,1770278185109,-512.40855507,0.00054794,120]
[404548338,1770278185163,-500.0,0.00054794,120]
[404548339,1770278185215,-510.91768141,0.00054794,120]
[404548340,1770278185268,-500.0,0.00054794,120]
[404548341,1770278185322,-574.81074062,0.00054794,120]